Cogmind - Beta 13 @@@ ROGUE MODE // 2024.03.25 @ 16:06:09 Player: birdman Result: Destroyed by Y-45 Defender with Heavy Assault Rifle Performance ------------- Evolutions (1) 500 Regions Visited (2) 400 Robots Destroyed (11) 55 Value Destroyed (314) 314 Prototype IDs (0) 0 Alien Tech Used (0) 0 Bonus (0) 0 TOTAL SCORE: 1269 Bonus ------- None Cogmind --------- Core Integrity 0/400 Matter 283/300 Energy 99/100 System Corruption 11% Temperature Cool (9) Movement Core (200) Ox3 Location -9/Materials Parts ------- > --- POWER (2) -------- (None) > --- PROPULSION (2) --- (None) > --- UTILITY (3) ------ Medium Storage Unit > --- WEAPON (2) ------- (None) > --- INVENTORY (10) --- (None) Peak State ------------ > --- POWER ------------ Ion Engine > --- PROPULSION ------- Improved Aluminum Leg Improved Aluminum Leg > --- UTILITY ---------- Improved Heat Sink Medium Armor Plating Hacking Suite > --- WEAPON ----------- Heavy EM Pulse Gun Assault Rifle > --- INVENTORY -------- Improved Aluminum Leg [Rating: 16] Favorites ----------- Power Ion Engine Engine Ion Engine Propulsion Improved Aluminum Leg Leg Improved Aluminum Leg Utility Improved Heat Sink Device Improved Heat Sink Storage Small Storage Unit Hackware Hacking Suite Protection Medium Armor Plating Weapon Assault Rifle Energy Gun Heavy EM Pulse Gun Ballistic Gun Assault Rifle Build | -11 -10 -9 ------- Run | Yrd Mat Mat Slots Evolved 2 | . . 2 Power 1 | . . 1 Propulsion . | . . . Utility 1 | . . 1 Weapon . | . . . Parts Attached 18 | 7 8 3 Power 2 | 1 1 . Engine 2 | 1 1 . Core . | . . . Reactor . | . . . Propulsion 5 | 2 3 . Treads . | . . . Leg 5 | 2 3 . Wheel . | . . . Hover . | . . . Flight . | . . . Utility 6 | 2 2 2 Device 1 | . 1 . Storage 3 | 2 . 1 Processor . | . . . Hackware 1 | . . 1 Protection 1 | . 1 . Artifact . | . . . Weapon 5 | 2 2 1 Energy Gun 3 | 1 1 1 Energy Cannon . | . . . Ballistic Gun 2 | 1 1 . Ballistic Cannon . | . . . Launcher . | . . . Special Weapon . | . . . Impact Weapon . | . . . Slashing Weapon . | . . . Piercing Weapon . | . . . Special Melee Weapon . | . . . Unidentified Prototypes . | . . . Parts Lost 9 | . . 9 Power 1 | . . 1 Propulsion 2 | . . 2 Utility 3 | . . 3 Weapon 3 | . . 3 Highest Loss Streak 8 | . . 8 To Critical Strikes . | . . . Average Slot Usage (%) 75 | . 99 58 Engine 10 | . 14 7 Leg 19 | . 27 14 Device 8 | . 9 7 Storage 6 | . 12 3 Hackware 3 | . . 6 Protection 6 | . 6 6 Energy Gun 9 | . 14 6 Ballistic Gun 9 | . 14 6 Naked Turns 27 | . . 27 Heaviest Build 19 | 17 19 18 Greatest Support 26 | 20 26 26 Greatest Overweight (x) 3 | 2 1 3 Average Overweight (x) . | . . . Largest Inventory Capacity 10 | 8 8 10 Average Capacity 6 | 7 6 6 Most Carried 4 | 2 4 2 Average Carried . | . . . Final Capacity 10 | 8 5 10 Final Carried 1 | . 1 . Class Distribution -------------------- 100% | Mutant Dominant Class ---------------- Mutant | -10/Materials Mutant | -9/Materials Resources | -11 -10 -9 ----------- Run | Yrd Mat Mat Matter Collected 403 | 292 53 58 Remotely . | . . . Salvage Created 461 | 111 122 228 Parts 30 | 6 6 18 Haulers Intercepted . | . . . Recyclers Shooed . | . . . Parts Field Recycled . | . . . Retrieved Matter . | . . . Parts Self-Destructed . | . . . Prevented . | . . . Kills | -11 -10 -9 ------- Run | Yrd Mat Mat Combat Hostiles Destroyed 8 | . 3 5 Guns 8 | . 3 5 Classes Destroyed 4 | 2 1 1 Tunneler 1 | 1 . . Recycler 1 | 1 . . Operator 1 | . . 1 Grunt 8 | . 3 5 Best Kill Streak 5 | 1 2 5 Combat Bots Only 5 | . 2 5 Max Kills in Single Turn 1 | 1 1 1 Gunslinging . | . . . Exploded . | . . . Melee . | . . . Uniques/NPCs Destroyed . | . . . Combat | -11 -10 -9 -------- Run | Yrd Mat Mat Hostile Shots Fired 122 | . 13 109 Missed 38 | . 4 34 Damage Taken 1209 | . 116 1093 Core 415 | . . 415 Absorbed by Shields . | . . . Core Remaining (%) 100 | 100 100 . Volleys Fired 39 | 8 9 22 Largest 2 | 2 2 2 Hottest 70 | 70 70 65 Shots Fired 73 | 16 18 39 Gun 73 | 16 18 39 Cannon . | . . . Launcher . | . . . Special . | . . . Kinetic 36 | 8 9 19 Thermal 22 | 8 7 7 Explosive . | . . . Electromagnetic 15 | . 2 13 Robot Hit Streak 14 | 3 4 14 Robot Miss Streak 3 | 3 3 3 Penetration Max . | . . . Secondary Targets 1 | . 1 . Max Gunslinging Chain 1 | . 1 . Shots Hit Robots 44 | 8 10 26 Core Hits 17 | 3 5 9 Critical Kills . | . . . Critical Parts Destroyed . | . . . Critical Strikes 1 | 1 . . Burn 1 | 1 . . Melee Attacks . | . . . Impact . | . . . Slashing . | . . . Piercing . | . . . Sneak Attacks . | . . . Combat Hostiles . | . . . Follow-up Attacks . | . . . Damage Inflicted 598 | 100 126 372 Guns 586 | 100 126 360 Cannons . | . . . Explosions . | . . . Melee . | . . . Ramming 12 | . . 12 Kinetic 220 | 37 61 122 Thermal 155 | 63 50 42 Explosive . | . . . Electromagnetic 211 | . 15 196 Impact . | . . . Slashing . | . . . Piercing . | . . . Highest Corruption 11 | . . 11 Average Corruption 10 | . . 10 Corruption Purged . | . . . Corruption Blocked . | . . . Effects 5 | . . 5 Matter Fused 1 | . . 1 Energy Discharges 1 | . . 1 Misdirections 3 | . . 3 Overload Shots . | . . . Overflow Damage . | . . . Projectiles . | . . . Explosions . | . . . Melee . | . . . Knockbacks . | . . . Impact . | . . . Kinetic . | . . . Secondary . | . . . Self-Inflicted Damage 2 | . . 2 Shots . | . . . Rammed 2 | . . 2 Targets Rammed 8 | . . 8 Kicked 6 | . . 6 Crushed . | . . . Highest Temperature 162 | 27 162 8 Average Temperature 45 | 11 79 6 Received Heat Transfer 555 | . 108 447 Siege Activations . | . . . Robots Corrupted . | . . . Combat Hostiles . | . . . Parts Fried . | . . . Impact Corruptions . | . . . Robots Melted . | . . . Combat Hostiles . | . . . Parts Melted 1 | 1 . . Heat Transferred 507 | 259 148 100 Parts Sabotaged . | . . . Parts Stolen . | . . . Parts Stripped . | . . . Power Chain Reactions . | . . . Alert | -11 -10 -9 ------- Run | Yrd Mat Mat Peak Influence 244 | 10 138 244 Initial 57 | . 6 57 Average 106 | 2 82 161 Maximum Alert Level 1 | . . 1 Low Security (%) 81 | 100 100 61 Level 1 18 | . . 38 Level 2 . | . . . Level 3 . | . . . Level 4 . | . . . Level 5 . | . . . High Security . | . . . Max Security . | . . . Squads Dispatched 2 | . 1 1 Investigation 1 | . . 1 Extermination . | . . . Reinforcement 1 | . 1 . Assault . | . . . Garrison . | . . . Intercept . | . . . Searches Triggered . | . . . Construction Impeded . | . . . Haulers Reinforced . | . . . Active Scanning Responses . | . . . Cargo Convoy Interrupts . | . . . Stealth | -11 -10 -9 --------- Run | Yrd Mat Mat Distress Signals . | . . . Communications Jammed . | . . . Distress Signals . | . . . Times Spotted 26 | . 6 20 Peak Tracking Total 7 | . 3 7 Tactical Retreats 6 | . 1 5 Traps | -11 -10 -9 ------- Run | Yrd Mat Mat Traps Triggered . | . . . Indirectly . | . . . Trap Hack Attempts . | . . . Triggered . | . . . Disarmed . | . . . Reprogrammed . | . . . Reused . | . . . Traps Extracted . | . . . Installed . | . . . Triggered . | . . . Machines | -11 -10 -9 ---------- Run | Yrd Mat Mat Machines Disabled . | . . . Max in Single Turn . | . . . Machines Repaired . | . . . Machines Dismantled . | . . . Machines Sabotaged . | . . . Overloaded Fab Kills . | . . . Hacking | -11 -10 -9 --------- Run | Yrd Mat Mat Machines Accessed 3 | . 1 2 Terminals 2 | . 1 1 Fabricators . | . . . Repair Stations . | . . . Recycling Units 1 | . . 1 Scanalyzers . | . . . Garrison Access . | . . . Total Hacks 16 | . 3 13 Successful 10 | . 2 8 Failed 6 | . 1 5 Catastrophic . | . . . Database Lockouts . | . . . Manual . | . . . Terminals 8 | . 3 5 Fabricators . | . . . Repair Stations . | . . . Recycling Units 8 | . . 8 Scanalyzers . | . . . Garrison Access . | . . . Terminal Hacks 6 | . 2 4 Record 2 | . 2 . Alert Level 2 | . . 2 Hauler Manifests 1 | . . 1 Registered Components 1 | . . 1 Fabricator Hacks . | . . . Repair Station Hacks . | . . . Recycling Unit Hacks 4 | . . 4 Recycle Component 1 | . . 1 Process 1 | . . 1 Retrieve Matter 1 | . . 1 Retrieve Components 1 | . . 1 Scanalyzer . | . . . Garrison Access Hacks . | . . . Unauthorized Hacks . | . . . Terminals . | . . . Fabricators . | . . . Repair Stations . | . . . Recycling Units . | . . . Scanalyzers . | . . . Garrison Access . | . . . Data Cores Recovered 1 | . . 1 Used 1 | . . 1 Hacking Detections 2 | . 1 1 Full Trace Events 1 | . . 1 Feedback Events . | . . . Feedback Blocked . | . . . Robot Schematics Acquired . | . . . Robots Built . | . . . Authchips . | . . . Time . | . . . Total Robot Build Rating . | . . . Part Schematics Acquired . | . . . Parts Built . | . . . Authchips . | . . . Time . | . . . Total Part Build Rating . | . . . Parts Repaired . | . . . Time . | . . . Parts Recycled 1 | . . 1 Recycled Matter 88 | . . 88 Retrieved Matter 88 | . . 88 Retrieved Components . | . . . Parts Scanalyzed . | . . . Part Schematics Acquired . | . . . Parts Damaged . | . . . Bothacking | -11 -10 -9 ------------ Run | Yrd Mat Mat Used RIF Installer . | . . . Robots Hacked . | . . . Non-combat . | . . . Combat . | . . . Robot Hacks Applied . | . . . Relay Couplers Released . | . . . Fabnet Peak Effective % . | . . . Robots Rewired . | . . . Allies Hacked . | . . . Hacks Repelled . | . . . Allies | -11 -10 -9 -------- Run | Yrd Mat Mat Total Allies . | . . . Largest Group . | . . . Highest-Rated Group . | . . . Highest-Rated Ally . | . . . Total Orders . | . . . Ally Attacks . | . . . Total Damage . | . . . Kills . | . . . Allies Corrupted . | . . . Allies Melted . | . . . Intel | -11 -10 -9 ------- Run | Yrd Mat Mat Robot Analysis Total . | . . . Derelict Logs Recovered . | . . . Drone Launches . | . . . Drone Recoveries . | . . . Exploration | -11 -10 -9 ------------- Run | Yrd Mat Mat Turns Passed 680 | 120 236 324 Spaces Moved 431 | 71 156 204 Core 112 | 23 . 89 Treads . | . . . Legs 319 | 48 156 115 Wheels . | . . . Hover . | . . . Flight . | . . . Fastest Speed 50 | 50 120 50 Average Speed 118 | 110 120 119 Slowest Speed 200 | 150 190 200 Overloaded Moves . | . . . Propulsion Burnouts . | . . . Robots Hopped . | . . . Cave-ins Triggered . | . . . Exploration Rate (%) 20 | 6 37 17 Regions Visited 2 Branch Regions . Pre-discovered Areas . | . . . Known Exits Taken . | . . . Unknown Exits Taken 2 | 1 1 . Scrap Searched . | . . . Spaces Dug . | . . . Terrain Destroyed . | . . . Melee . | . . . Projectile . | . . . AOE . | . . . Terrain Rammed . | . . . Walls Destroyed . | . . . Machines Disabled . | . . . Actions | -11 -10 -9 --------- Run | Yrd Mat Mat Total 527 | 97 186 244 Wait 11 | 5 . 6 Move 429 | 70 155 204 Hop . | . . . Pick Up 14 | 7 6 1 Fast Attach 2 | . . 2 Attach 10 | 7 2 1 Detach 1 | . 1 . Swap 6 | . 6 . Drop 7 | . 7 . Fire 39 | 8 9 22 Melee . | . . . Ram 2 | . . 2 Kick 6 | . . 6 Crush . | . . . Escape Stasis . | . . . Rewire . | . . . Trap . | . . . Miscellaneous . | . . . Route ------- -11/Scrapyard -10/Materials -9/Materials History --------- Turn | Location | Event 25 | -11/Scrapyard | Discovered new exit (range 15) 121 | -11/Scrapyard | Entered Materials 284 | -10/Materials | Discovered new exit (range 16) 300 | -10/Materials | Build established: Mutant 357 | -10/Materials | Entered another Materials area 357 | -9/Materials | Evolved 2 slots: Power x1, Utility x1 571 | -9/Materials | System corruption reached 10% 580 | -9/Materials | Core integrity fell below 50% 603 | -9/Materials | Lost 8 parts (1p2n3u2w) 678 | -9/Materials | Core integrity fell below 20% 681 | -9/Materials | Destroyed by Y-45 Defender with Heavy Assault Rifle Last Messages --------------- 00567_ Kicked B-36 Bruiser out of the way. 00568_ Kicked B-36 Bruiser. 00570_ Ion Engine destroyed. 00570_ Imp. Heat Sink destroyed. 00570_ System corrupted by crushing effect (+1). 00570_ System corrupted by crushing effect (+2). 00571_ Kicked B-36 Bruiser out of the way. 00572_ Imp. Aluminum Leg destroyed. 00572_ Kicked B-36 Bruiser. 00572_ Imp. Aluminum Leg destroyed. 00573_ Slammed into B-36 Bruiser. 00573_ Destabilizing: Core damaged (-16). 00574_ Slammed into B-36 Bruiser. 00575_ Knocked back. 00580_ Critical hit (Burn: +37). 00593_ System corrupted: Matter fused (-7). 00599_ Acquired Med. Storage Unit. 00608_ System corrupted: Energy discharge (-39). 00628_ K-01 Serf collects debris. 00674_ Critical hit (Burn: +37). Map ----- +----------------------------------------------------+ | ??????????????????????????????????????? | | ??????????????????????????????????????? | | ??????????????????????????????????????? | | ??????????????????????????????????????? | | ??????????????????????????????????????? | | ??????????????????????????????????????? | | ??????????????????????????????????????? | | ??????????????????????????????????????? | | ??????????????????????????????????????? | | ??????????????????????????????????????? | | ??????????????????????????????????????? | | ??????????????????????????????????????? | | ??????????????????????????????????????? | | ??????????????????????????????????????? | | #######???????????????????????????????? | | # #???????????????????????????????? | | # #???????????????????????????????? | | # #########???????????????????????? | | # + #???????????????????????? | | # # ##### #???????????????????????? | | #######+##### #???????????????????????? | | ???# #b#???????????????????????? | | ???# # #????###+###????????"???? | | ???# # ###### ####### " ??? | | ???# Y#g ??? | | ???# Y @ g Y ?? | | ???# # g a ??? | | ???# ### #### #######??????? | | ???# #?# #??## ##????????????? | | ???# #?# #???# #?????????????? | | ???############+##### #?????????????? | | ???????????# / #?????????????? | | ???????????# # #?????????????? | | ???????????# = ??# #?????????????? | | ???????????# ??# #?????????????? | | ???????????# [[ ?# #?????????????? | | ???????????# [[ ?# #?????????????? | | ???????????# # #?????????????? | | ???????????# "T" # #?????????????? | | ???????????# # #?????????????? | | ???????????## ####### #?????????????? | | ????????????##??????# #?????????????? | | ?????????????######## #?????????????? | | ?????????????# =# #?????????????? | | ?????????????# """=# #?????????????? | | ?????????????# "Y"!+% #?????????????? | | ?????????????# %!=#% #?????????????? | | ?????????????# !# [ #?????????????? | | ?????????????# # #?????????????? | | ?????????????######## #?????????????? | +----------------------------------------------------+ Best States ------------- Heat Dissipation 42 Energy Generation 10 Energy Capacity 250 Matter Stores 300 Matter Capacity 300 Sight Range 16 Terrain Scan Density 10 Armor Coverage 225 Evasion (%) 55 Offensive Hacking 10 Item Schematics ----------------- None Robot Schematics ------------------ None Fabricated ------------ Nothing Alien Tech Used ----------------- None Achievements -------------- Dynamic Key Challenges ------------ None Game ------ Seed TacticalBurstGravjet Manual? 0 Play Time 00:21:17 Cumulative 10.1 hours Start 2024.03.25 @ 15:44:30 End 2024.03.25 @ 16:06:09 Sessions 1 Manual Loads 0 Difficulty Rogue Special Mode None Game No. 17 Rogue 17 Adventurer 0 Explorer 0 Win Type - Total 0 Types 0/0/0/0/0/0/0/0/0 Lore% 4 Gallery% 20 Achievement% 15 Wizard Run 0 Options --------- Layout 1 ASCII 0 Keyboard 0 Movement Numpad Keybinds 0 Fullscreen 1 Font 32/SmallcapsGlow Map View 50x35 Zoom Use 0% Tactical HUD 1 Map Filters NONE Filters NONE Steam 1 RUN: 4d21ee76-af43-44cc-b2c9-e98fa4464e74